Cogmind - Beta 14 @@@ ROGUE MODE // 2024.08.13 @ 13:21:21 Player: Empythree Result: Self-destructed Performance ------------- Evolutions (3) 1500 Regions Visited (7) 1400 Robots Destroyed (40) 200 Value Destroyed (1499) 1499 Prototype IDs (3) 60 Alien Tech Used (0) 0 Bonus (0) 0 TOTAL SCORE: 4659 Bonus ------- None Cogmind --------- Core Integrity 394/700 Matter 236/300 Energy 100/100 System Corruption 0% Temperature Cool (12) Movement Treading (160) Location -7/Lower Caves Parts ------- > --- POWER (1) -------- (None) > --- PROPULSION (3) --- Light Treads > --- UTILITY (6) ------ Medium Storage Unit Targeting Computer Weapon Cycler > --- WEAPON (3) ------- Flak Cannon > --- INVENTORY (10) --- Light Nuclear Core High-capacity Battery (250) Large Matter Pod (150) Advanced Weight Redist. System Core Analyzer Improved Field Recycling Unit (0) Improved EM Pulse Cannon Heavy Ion Cannon Great Maul Peak State ------------ > --- POWER ------------ Neutrino Core > --- PROPULSION ------- Light Treads Light Treads Improved Treads > --- UTILITY ---------- Medium Storage Unit Targeting Computer Recoil Stabilizer Weapon Cycler Medium Reactive Plating Hardlight Generator > --- WEAPON ----------- Flak Cannon Flak Cannon Great Maul > --- INVENTORY -------- Deuterium Engine High-capacity Battery Large Matter Pod Core Analyzer Improved Propulsion Shielding Improved Field Recycling Unit Improved EM Pulse Cannon Heavy Ion Cannon Flak Cannon Heavy Rocket Launcher [Rating: 38] Favorites ----------- Power Ion Engine Engine Ion Engine Power Core Light Nuclear Core Propulsion Light Treads Treads Light Treads Wheel Wheel Flight Unit Flight Unit Utility Targeting Computer Device Weapon Cycler Storage Medium Storage Unit Processor Targeting Computer Protection Improved Propulsion Shielding Weapon Flak Cannon Energy Gun Particle Gun Ballistic Gun Light Assault Rifle Ballistic Cannon Flak Cannon Launcher Grenade Launcher Impact Weapon Great Maul Build | -11 -10 -10 -10 -9 -8 -7 -7 ------- Run | Yrd Mat Min Exi Min Mat Fac Low Slots Evolved 6 | . . . . . 4 2 . Power . | . . . . . . . . Propulsion 1 | . . . . . 1 . . Utility 4 | . . . . . 3 1 . Weapon 1 | . . . . . . 1 . Parts Attached 45 | 8 5 . . 3 14 9 6 Power 7 | 1 . . . . 4 . 2 Engine 5 | 1 . . . . 3 . 1 Core 2 | . . . . . 1 . 1 Reactor . | . . . . . . . . Propulsion 8 | 4 . . . 2 2 . . Treads 5 | 2 . . . 2 1 . . Leg . | . . . . . . . . Wheel 2 | 2 . . . . . . . Hover . | . . . . . . . . Flight 1 | . . . . . 1 . . Utility 16 | 1 2 . . . 5 6 2 Device 4 | . . . . . 1 3 . Storage 4 | 1 1 . . . 1 . 1 Processor 3 | . 1 . . . 2 . . Hackware . | . . . . . . . . Protection 5 | . . . . . 1 3 1 Artifact . | . . . . . . . . Weapon 14 | 2 3 . . 1 3 3 2 Energy Gun 3 | 1 1 . . . 1 . . Energy Cannon . | . . . . . . . . Ballistic Gun 2 | 1 1 . . . . . . Ballistic Cannon 3 | . . . . . . 2 1 Launcher 4 | . 1 . . 1 1 . 1 Special Weapon . | . . . . . . . . Impact Weapon 2 | . . . . . 1 1 . Slashing Weapon . | . . . . . . . . Piercing Weapon . | . . . . . . . . Special Melee Weapon . | . . . . . . . . Unidentified Prototypes 1 | . . . . . 1 . . Parts Lost 11 | . . . . 2 . 1 8 Power 1 | . . . . . . . 1 Propulsion 4 | . . . . 2 . . 2 Utility 4 | . . . . . . 1 3 Weapon 2 | . . . . . . . 2 Highest Loss Streak 8 | . . . . 2 . 1 8 To Critical Strikes . | . . . . . . . . Average Slot Usage (%) 98 | . 97 100 100 98 95 99 98 Engine 10 | . 14 14 14 14 8 7 7 Treads 15 | . . . . 14 24 23 22 Wheel 9 | . 28 28 28 12 . . . Device 6 | . . . . . 2 15 16 Storage 10 | . 14 14 14 14 9 7 7 Processor 13 | . 11 14 14 14 24 9 7 Protection 5 | . . . . . 6 11 11 Energy Gun 11 | . 17 28 28 20 9 . . Ballistic Cannon 5 | . . . . . . 14 14 Launcher 2 | . 7 . . 7 6 . . Impact Weapon 3 | . . . . . 2 6 6 Peak Build Rating 38 | 6 8 8 8 8 24 35 38 Average Rating 19 | 3 7 8 8 7 19 32 33 On Entrance 12 | . 6 8 8 8 8 24 35 Naked Turns . | . . . . . . . . Heaviest Build 62 | 12 19 19 19 21 28 62 62 Greatest Support 63 | 40 20 20 20 40 63 63 63 Greatest Overweight (x) 6 | . . . . 6 . . 1 Average Overweight (x) . | . . . . . . . . Largest Inventory Capacity 10 | 8 10 10 10 10 10 10 10 Average Capacity 9 | 6 9 10 10 10 10 10 10 Most Carried 10 | 6 7 8 9 8 10 10 10 Average Carried 8 | 3 5 7 8 6 8 9 9 Final Capacity 10 | 8 10 10 10 10 10 10 10 Final Carried 10 | 4 7 8 8 6 10 10 9 Class Distribution -------------------- 100% | Mutant Dominant Class ---------------- Mutant | -10/Materials Mutant | -10/Mines Mutant | -10/Exiles Mutant | -9/Mines Mutant | -8/Materials Mutant | -7/Factory Mutant | -7/Lower Caves Resources | -11 -10 -10 -10 -9 -8 -7 -7 ----------- Run | Yrd Mat Min Exi Min Mat Fac Low Matter Collected 1146 | 240 75 75 . 213 230 123 190 Remotely . | . . . . . . . . Salvage Created 1208 | . 125 . . 142 322 322 297 Parts 54 | . 8 . . 14 15 10 7 Haulers Intercepted . | . . . . . . . . Recyclers Shooed . | . . . . . . . . Parts Field Recycled . | . . . . . . . . Retrieved Matter . | . . . . . . . . Parts Self-Destructed 7 | . . . . . . . 7 Prevented . | . . . . . . . . Kills | -11 -10 -10 -10 -9 -8 -7 -7 ------- Run | Yrd Mat Min Exi Min Mat Fac Low Combat Hostiles Destroyed 33 | . 4 . . 7 5 7 10 Melee 9 | . . . . . 5 4 . Guns 3 | . 2 . . 1 . . . Cannons 9 | . . . . . . 1 8 AOE 10 | . 2 . . 6 . . 2 Classes Destroyed 7 | . 2 . . 1 2 2 . Recycler 1 | . . . . . 1 . . Operator 2 | . . . . . 2 . . Watcher 4 | . 1 . . . 2 1 . Swarmer 6 | . . . . 4 . . 2 Grunt 25 | . 4 . . 3 5 5 8 Duelist 1 | . . . . . . 1 . Sentry 1 | . . . . . . 1 . Best Kill Streak 4 | . 3 . . 4 3 4 4 Combat Bots Only 4 | . 2 . . 4 2 4 4 Max Kills in Single Turn 2 | . 1 . . 2 1 1 2 Gunslinging . | . . . . . . . . Exploded 2 | . 1 . . 2 . . 1 Melee 1 | . . . . . 1 1 . Uniques/NPCs Destroyed . | . . . . . . . . Combat | -11 -10 -10 -10 -9 -8 -7 -7 -------- Run | Yrd Mat Min Exi Min Mat Fac Low Hostile Shots Fired 204 | . 9 2 . 17 22 43 111 Missed 50 | . 2 . . 5 3 15 25 Damage Taken 2459 | . 86 112 . 136 296 296 1533 Core 480 | . 14 34 . 46 80 42 264 Absorbed by Shields 8 | . . . . . . 8 . Redirected to Shielding 265 | . . . . . 21 138 106 Ignored by Resistances 58 | . . . . . . . 58 Core Remaining (%) 82 | 100 . . . 62 85 . . Volleys Fired 56 | . 14 . . 10 10 4 18 Largest 2 | . 2 . . 1 1 2 2 Hottest 88 | . 60 . . 65 45 88 88 Shots Fired 81 | . 21 . . 10 10 8 32 Gun 23 | . 15 . . 4 4 . . Cannon 36 | . . . . . . 8 28 Launcher 22 | . 6 . . 6 6 . 4 Special . | . . . . . . . . Kinetic 43 | . 7 . . . . 8 28 Thermal 12 | . 8 . . 4 . . . Explosive 22 | . 6 . . 6 6 . 4 Electromagnetic 4 | . . . . . 4 . . Robot Hit Streak 9 | . 6 . . 2 1 5 9 Robot Miss Streak 10 | . 1 . . 3 3 5 10 Penetration Max . | . . . . . . . . Secondary Targets . | . . . . . . . . Shots Hit Robots 77 | . 14 . . 2 14 17 30 Core Hits 88 | . 13 . . 8 12 11 44 Critical Kills 4 | . . . . . 3 1 . Critical Parts Destroyed 3 | . . . . . 1 1 1 Critical Strikes 7 | . . . . . 4 2 1 Smash 7 | . . . . . 4 2 1 Melee Attacks 30 | . . . . . 13 10 7 Impact 30 | . . . . . 13 10 7 Slashing . | . . . . . . . . Piercing . | . . . . . . . . Sneak Attacks . | . . . . . . . . Combat Hostiles . | . . . . . . . . Follow-up Attacks . | . . . . . . . . Damage Inflicted 3431 | . 383 . . 484 773 622 1169 Guns 172 | . 112 . . 16 44 . . Cannons 640 | . . . . . . 151 489 Explosions 1414 | . 271 . . 468 267 . 408 Melee 1205 | . . . . . 462 471 272 Ramming . | . . . . . . . . Kinetic 691 | . 51 . . . . 151 489 Thermal 77 | . 61 . . 16 . . . Explosive 1414 | . 271 . . 468 267 . 408 Electromagnetic 44 | . . . . . 44 . . Impact 1205 | . . . . . 462 471 272 Slashing . | . . . . . . . . Piercing . | . . . . . . . . Highest Corruption . | . . . . . . . . Average Corruption . | . . . . . . . . Corruption Purged . | . . . . . . . . Corruption Blocked . | . . . . . . . . Overload Shots . | . . . . . . . . Overflow Damage 286 | . 38 . . 30 118 65 35 Projectiles . | . . . . . . . . Explosions 103 | . 38 . . 30 35 . . Melee 183 | . . . . . 83 65 35 Knockbacks 26 | . . . . . 1 . 25 Impact 4 | . . . . . 1 . 3 Kinetic 21 | . . . . . . . 21 Secondary 1 | . . . . . . . 1 Self-Inflicted Damage 62 | . . . . . . . 62 Shots 2 | . . . . . . . 2 Rammed . | . . . . . . . . Targets Rammed . | . . . . . . . . Kicked . | . . . . . . . . Crushed . | . . . . . . . . Highest Temperature 193 | . 70 . . 108 . 108 193 Average Temperature 67 | . 28 . . 39 . 57 87 Received Heat Transfer 1056 | . 48 9 . 51 162 111 675 Siege Activations . | . . . . . . . . Robots Corrupted 2 | . . . . . . 2 . Combat Hostiles 2 | . . . . . . 2 . Parts Fried 5 | . . . . . 3 2 . Impact Corruptions 8 | . . . . . 3 4 1 Robots Melted . | . . . . . . . . Combat Hostiles . | . . . . . . . . Parts Melted . | . . . . . . . . Heat Transferred 187 | . 150 . . 37 . . . Parts Sabotaged . | . . . . . . . . Parts Stolen . | . . . . . . . . Parts Stripped . | . . . . . . . . Power Chain Reactions . | . . . . . . . . Alert | -11 -10 -10 -10 -9 -8 -7 -7 ------- Run | Yrd Mat Min Exi Min Mat Fac Low Peak Influence 240 | . 220 115 . 185 207 240 . Initial 93 | . . 85 . . 72 93 . Average 101 | . 135 86 . 53 94 137 . Maximum Alert Level 1 | . 1 . . . 1 1 . Low Security (%) 89 | 100 72 100 . 100 98 75 . Level 1 10 | . 27 . . . 1 24 . Level 2 . | . . . . . . . . Level 3 . | . . . . . . . . Level 4 . | . . . . . . . . Level 5 . | . . . . . . . . High Security . | . . . . . . . . Max Security . | . . . . . . . . Squads Dispatched 2 | . 1 . . . . 1 . Investigation 2 | . 1 . . . . 1 . Extermination . | . . . . . . . . Reinforcement . | . . . . . . . . Assault . | . . . . . . . . Garrison . | . . . . . . . . Intercept . | . . . . . . . . Searches Triggered . | . . . . . . . . Construction Impeded . | . . . . . . . . Haulers Reinforced . | . . . . . . . . Active Scanning Responses . | . . . . . . . . Cargo Convoy Interrupts . | . . . . . . . . Stealth | -11 -10 -10 -10 -9 -8 -7 -7 --------- Run | Yrd Mat Min Exi Min Mat Fac Low Distress Signals 2 | . . . . . 2 . . Communications Jammed . | . . . . . . . . Distress Signals . | . . . . . . . . Times Spotted 54 | . 7 4 . 7 15 8 13 Peak Tracking Total 7 | . 3 2 . 4 5 4 7 Tactical Retreats 2 | . . 1 . . 1 . . Traps | -11 -10 -10 -10 -9 -8 -7 -7 ------- Run | Yrd Mat Min Exi Min Mat Fac Low Traps Triggered . | . . . . . . . . Indirectly . | . . . . . . . . Trap Hack Attempts . | . . . . . . . . Triggered . | . . . . . . . . Disarmed . | . . . . . . . . Reprogrammed . | . . . . . . . . Reused . | . . . . . . . . Traps Extracted . | . . . . . . . . Installed . | . . . . . . . . Triggered . | . . . . . . . . Machines | -11 -10 -10 -10 -9 -8 -7 -7 ---------- Run | Yrd Mat Min Exi Min Mat Fac Low Machines Disabled 4 | . 2 . . . 2 . . Max in Single Turn 2 | . 2 . . . 1 . . Machines Repaired . | . . . . . . . . Machines Dismantled . | . . . . . . . . Machines Sabotaged . | . . . . . . . . Overloaded Fab Kills . | . . . . . . . . Hacking | -11 -10 -10 -10 -9 -8 -7 -7 --------- Run | Yrd Mat Min Exi Min Mat Fac Low Machines Accessed 6 | . 1 . 1 . 2 2 . Terminals 4 | . 1 . . . 2 1 . Fabricators . | . . . . . . . . Repair Stations . | . . . . . . . . Recycling Units . | . . . . . . . . Scanalyzers 1 | . . . . . . 1 . Garrison Access . | . . . . . . . . Total Hacks 12 | . 3 . 2 . 4 3 . Successful 6 | . 2 . 2 . 2 . . Failed 6 | . 1 . . . 2 3 . Catastrophic . | . . . . . . . . Database Lockouts . | . . . . . . . . Manual . | . . . . . . . . Terminals 9 | . 3 . . . 4 2 . Fabricators . | . . . . . . . . Repair Stations . | . . . . . . . . Recycling Units . | . . . . . . . . Scanalyzers 1 | . . . . . . 1 . Garrison Access . | . . . . . . . . Terminal Hacks 6 | . 2 . 2 . 2 . . Record 4 | . 2 . 2 . . . . Prototype ID Bank 1 | . . . . . 1 . . Branch Access Points 1 | . . . . . 1 . . Fabricator Hacks . | . . . . . . . . Repair Station Hacks . | . . . . . . . . Recycling Unit Hacks . | . . . . . . . . Scanalyzer . | . . . . . . . . Garrison Access Hacks . | . . . . . . . . Unauthorized Hacks . | . . . . . . . . Terminals . | . . . . . . . . Fabricators . | . . . . . . . . Repair Stations . | . . . . . . . . Recycling Units . | . . . . . . . . Scanalyzers . | . . . . . . . . Garrison Access . | . . . . . . . . Data Cores Recovered 2 | . . . . . 2 . . Used . | . . . . . . . . Hacking Detections 2 | . 1 . . . . 1 . Full Trace Events 2 | . 1 . . . . 1 . Feedback Events . | . . . . . . . . Feedback Blocked . | . . . . . . . . Robot Schematics Acquired . | . . . . . . . . Robots Built . | . . . . . . . . Authchips . | . . . . . . . . Time . | . . . . . . . . Total Robot Build Rating . | . . . . . . . . Part Schematics Acquired . | . . . . . . . . Parts Built . | . . . . . . . . Authchips . | . . . . . . . . Time . | . . . . . . . . Total Part Build Rating . | . . . . . . . . Parts Repaired . | . . . . . . . . Time . | . . . . . . . . Parts Recycled . | . . . . . . . . Recycled Matter . | . . . . . . . . Retrieved Matter . | . . . . . . . . Retrieved Components . | . . . . . . . . Parts Scanalyzed . | . . . . . . . . Part Schematics Acquired . | . . . . . . . . Parts Damaged . | . . . . . . . . Bothacking | -11 -10 -10 -10 -9 -8 -7 -7 ------------ Run | Yrd Mat Min Exi Min Mat Fac Low Used RIF Installer . | . . . . . . . . Robots Hacked . | . . . . . . . . Non-combat . | . . . . . . . . Combat . | . . . . . . . . Robot Hacks Applied . | . . . . . . . . Relay Couplers Released . | . . . . . . . . Fabnet Peak Effective % . | . . . . . . . . Robots Rewired . | . . . . . . . . Allies Hacked . | . . . . . . . . Hacks Repelled . | . . . . . . . . Allies | -11 -10 -10 -10 -9 -8 -7 -7 -------- Run | Yrd Mat Min Exi Min Mat Fac Low Total Allies . | . . . . . . . . Largest Group . | . . . . . . . . Highest-Rated Group . | . . . . . . . . Highest-Rated Ally . | . . . . . . . . Total Orders . | . . . . . . . . Ally Attacks . | . . . . . . . . Total Damage . | . . . . . . . . Kills . | . . . . . . . . Allies Corrupted . | . . . . . . . . Allies Melted . | . . . . . . . . Intel | -11 -10 -10 -10 -9 -8 -7 -7 ------- Run | Yrd Mat Min Exi Min Mat Fac Low Robot Analysis Total . | . . . . . . . . Derelict Logs Recovered 1 | . . . . 1 . . . Drone Launches . | . . . . . . . . Drone Recoveries . | . . . . . . . . Exploration | -11 -10 -10 -10 -9 -8 -7 -7 ------------- Run | Yrd Mat Min Exi Min Mat Fac Low Turns Passed 2966 | 54 198 261 325 351 626 695 456 Spaces Moved 2118 | 35 180 287 405 294 311 386 220 Core 11 | 9 . . . 2 . . . Treads 1030 | 8 . . . 105 311 386 220 Legs . | . . . . . . . . Wheels 1077 | 18 180 287 405 187 . . . Hover . | . . . . . . . . Flight . | . . . . . . . . Fastest Speed 50 | 50 80 80 80 80 160 160 160 Average Speed 119 | 90 80 80 80 110 160 160 160 Slowest Speed 350 | 160 80 80 80 350 160 160 240 Overloaded Moves . | . . . . . . . . Propulsion Burnouts . | . . . . . . . . Robots Hopped . | . . . . . . . . Cave-ins Triggered . | . . . . . . . . Exploration Rate (%) 39 | 3 39 51 79 58 32 12 38 Regions Visited 7 Branch Regions 4 Pre-discovered Areas 1 | . . . . 1 . . . Known Exits Taken 1 | . . . . . 1 . . Unknown Exits Taken 6 | 1 1 1 1 1 . 1 . Scrap Searched 4 | . . 1 . 1 . . 2 Spaces Dug . | . . . . . . . . Terrain Destroyed 177 | . 53 . . 40 32 . 52 Melee . | . . . . . . . . Projectile . | . . . . . . . . AOE 177 | . 53 . . 40 32 . 52 Terrain Rammed . | . . . . . . . . Walls Destroyed . | . . . . . . . . Machines Disabled . | . . . . . . . . Actions | -11 -10 -10 -10 -9 -8 -7 -7 --------- Run | Yrd Mat Min Exi Min Mat Fac Low Total 2431 | 56 213 318 406 310 406 439 283 Wait 106 | 4 7 31 . 2 25 12 25 Move 2111 | 34 179 286 404 293 310 385 220 Hop . | . . . . . . . . Pick Up 53 | 10 6 1 1 1 20 11 3 Fast Attach 4 | . . . . . 2 2 . Attach 18 | 6 1 . . 2 4 4 1 Detach . | . . . . . . . . Swap 23 | 2 4 . . 1 8 3 5 Drop 30 | . 2 . 1 1 14 8 4 Fire 56 | . 14 . . 10 10 4 18 Melee 30 | . . . . . 13 10 7 Ram . | . . . . . . . . Kick . | . . . . . . . . Crush . | . . . . . . . . Escape Stasis . | . . . . . . . . Rewire . | . . . . . . . . Trap . | . . . . . . . . Miscellaneous . | . . . . . . . . Route ------- -11/Scrapyard -10/Materials -10/Mines (discovered 2 exits: [*Mat] / *Exi) -10/Exiles (discovered 2 exits: [*Min x2]) -9/Mines -8/Materials (discovered 2 exits: *Fac / Sto) -7/Factory -7/Lower Caves History --------- Turn | Location | Event 13 | -11/Scrapyard | Discovered new exit (range 15) 55 | -11/Scrapyard | Entered Materials 229 | -10/Materials | Discovered new exit (range 15) 253 | -10/Materials | Entered Mines 254 | -10/Mines | Assembled infested the area 275 | -10/Mines | Met 8R-AWN 302 | -10/Mines | Build established: Mutant 353 | -10/Mines | Discovered new exit (range 5) 378 | -10/Mines | Discovered new exit (range 15) 514 | -10/Mines | Entered Exiles 527 | -10/Exiles | Discovered new exit (range 15) 544 | -10/Exiles | Welcomed by 8R-AWN 557 | -10/Exiles | Met EX-HEX 588 | -10/Exiles | Met EX-DEC 620 | -10/Exiles | Visited The Gauntlet 794 | -10/Exiles | Discovered new exit (range 14) 839 | -10/Exiles | Entered Mines 840 | -9/Mines | Learned location of Storage (-8) 878 | -9/Mines | Met a Derelict bent on vengeance 885 | -9/Mines | Learned Materials terminal intel 1026 | -9/Mines | Discovered new exit (range 10) 1190 | -9/Mines | Entered Materials 1190 | -8/Materials | Evolved 4 slots: Propulsion x1, Utility x3 1191 | -8/Materials | Loaded intel: 12 terminal locations 1496 | -8/Materials | Identified exit to Storage 1785 | -8/Materials | Discovered new exit (range 3) 1786 | -8/Materials | Identified exit to Factory 1816 | -8/Materials | Entered Factory 1816 | -7/Factory | Evolved 2 slots: Utility x1, Weapon x1 2382 | -7/Factory | Discovered new exit (range 15) 2511 | -7/Factory | Entered Lower Caves 2933 | -7/Lower Caves | Attracted the attention of an 0b10 base 2967 | -7/Lower Caves | Self-destructed Last Messages --------------- 02946_ Penetrated by Slug. 02948_ Med. Reactive Plating destroyed. 02948_ Slug penetrates Wall. 02951_ Penetrated by Slug. 02953_ VTOL Module fries itself beyond repair. 02953_ Lgt. Nuclear Core fries itself beyond repair. 02954_ G-47 Trooper destroyed. 02954_ Penetrated by Slug. 02954_ Imp. Propulsion Shielding destroyed. 02956_ Imp. Treads destroyed. 02957_ Flak Cannon destroyed. 02957_ Penetrated by Slug. 02958_ Critical hit (Burn: +37). 02960_ Penetrated by Slug. 02960_ Deuterium Engine destroyed. 02960_ Machine disabled. 02960_ G-47 Trooper destroyed. 02962_ Penetrated by Slug. 02966_ Hvy. Rocket Launcher destroyed. Map ----- +----------------------------------------------------+ | ?????????????????????????????????????????????????? | | ?????????????????????????????????????????????????? | | ?????????????????????????????????????????????????? | | ?????????????????????????????????????????????????? | | ??????????????????????????????????????????????#### | | ?????????????????????????????????????????????## | | ?????????????????????????????????????????????# | | ???????????????????????????????????????????### | | ??????????????????????????????????????????? ## | | ??????????????????????????????????????????? ### # | | ????????????????????????#? ???????????### #?## | | ???????????????????????? ? ??????????## ##?## | | ??????????????????? ### ? ???????### ##?# | | ???????????????????? ? ???????# #?? | | ???????????????????? ? ???????# # #?? | | ???????????????????## ? ???###????## ##?? | | ???????????????????# # ##?## #????# ##??? | | ???????????????????# ### #????## #???# | | ????????????????##?# ## ###### ##### | | ??????????????### # ## | | ?????????????## | | ????????????## g %####### ###### | | ????????????# g #?????# ##????? | | ???????????# Y ## #?????####?????? | | ??????????# #" "??# #??????????????? | | ???????????? ##???# @ "??# #?????????????# | | ?????????????????????#" "??# #?????????????## | | ?????????????????????# ?# #??????????????# | | ?????????????????????# # #??????????????? | | ?????????????????????#"" # #??????????????? | | ?????????????????????#"T # ??????????????? | | ?????????????????????#"" # ??????????????? | | ?????????????????????#"" """""# #??????????????? | | ??????????????????????###+###### #??????????????? | | ???????????????????????????????? ???????????????? | | ???????????????????????????????? ???????????????? | | ????????????????????????????????##???????????????? | | ?????????????????????????????????????????????????? | | ?????????????????????????????????????????????????? | | ?????????????????????????????????????????????????? | | ?????????????????????????????????????????????????? | | ?????????????????????????????????????????????????? | | ?????????????????????????????????????????????????? | | ?????????????????????????????????????????????????? | | ?????????????????????????????????????????????????? | | ?????????????????????????????????????????????????? | | ?????????????????????????????????????????????????? | | ?????????????????????????????????????????????????? | | ?????????????????????????????????????????????????? | | ?????????????????????????????????????????????????? | +----------------------------------------------------+ Best States ------------- Heat Dissipation 41 Energy Generation 14 Energy Capacity 275 Matter Stores 450 Matter Capacity 450 Sight Range 16 Terrain Scan Density 10 Armor Coverage 225 Resistance: KI 30 Propulsion Shielding 66 Weapon Shielding 66 Weapon Cycling 15 Evasion (%) 50 Targeting Accuracy 5 Recoil Reduction 7 Item Schematics ----------------- None Robot Schematics ------------------ None Fabricated ------------ Nothing Alien Tech Used ----------------- None Achievements -------------- None Challenges ------------ None Game ------ Seed ImpulseCouplerLink Manual? 0 Play Time 00:35:28 Cumulative 8.5 hours Start 2024.08.12 @ 14:06:49 End 2024.08.13 @ 13:21:21 Sessions 3 Manual Loads 0 Difficulty Rogue Special Mode None Game No. 15 Rogue 13 Adventurer 2 Explorer 0 Win Type - Total 0 Types 0/0/0/0/0/0/0/0/0 Lore% 9 Gallery% 19 Achievement% 15 Wizard Run 0 Options --------- Layout 2 ASCII 0 Keyboard 0 Movement Numpad Keybinds 0 Fullscreen 1 Font 32/SmallcapsGlow Map View 50x44 Zoom Use 0% Tactical HUD 1 Map Filters NONE Filters NONE Steam 1 RUN: 1792a9da-2247-4fc0-b40e-b0b7acaa5892